[Event "Vojvodina Open 2024-A 2024"]
[Site "Novi Sad"]
[Date "2024.06.29"]
[Round "7.1"]
[White "Manish Anto Cristiano F"]
[Black "Safarli, Eltaj"]
[Result "1/2-1/2"]
[ECO "C87"]
[WhiteElo "2307"]
[BlackElo "2595"]
[Annotator "TA"]
[PlyCount "53"]
[EventDate "2024.06.03"]
[EventType "swiss"]
[EventCountry "SRB"]
[SourceTitle "playchess.com"]
[Source "ChessBase"]
[SourceQuality "1"]
[TimeControl "40/5400+30:900+30"]

{[%evp 15,53,34,35,35,36,29,24,22,17,21,48,39,34,43,60,26,46,15,22,23,30,14,32,22,14,0,0,0,0,0,0,0,0,0,0,0,0,0,0,0]} 1. e4 {[%emt 0:02:02]} e5 {[%emt 0:00:05]} 2. Nf3 {[%emt 0:00:10]} Nc6 {[%emt 0:00:05]} 3. Bb5 {[%emt 0:00:08]} a6 {[%emt 0:00:05]} 4. Ba4 {[%emt 0:00:58]} Nf6 {[%emt 0:00:07]} 5. O-O {[%emt 0:00:19]} Be7 {[%emt 0:00:13]} 6. Re1 {[%emt 0:00:20]} d6 {[%emt 0:00:36]} 7. c3 {[%emt 0:02:41]} Bg4 {[%emt 0:00:50]} 8. h3 {[%emt 0:02:17]} Bh5 {[%emt 0:00:05]} 9. Bxc6+ {[%emt 0:00:12]} bxc6 {[%emt 0:00:05]} 10. d4 {[%emt 0:00:06]} exd4 {[%emt 0:06:36]} 11. cxd4 {[%emt 0:00:10] White has an edge.} O-O {[%emt 0:00:16]} 12. Nc3 {[%emt 0:08:11]} Rb8 {[%emt 0:03:13]} 13. Qd3 {[%emt 0:04:20]} a5 {[%emt 0:07:15]} 14. b3 {[%emt 0:10:12]} Re8 {[%emt 0:05:50]} 15. Bd2 {[%emt 0:00:27]} Nd7 {[%emt 0:04:10]} 16. Ne2 {[%emt 0:12:21]} Ra8 {[%emt 0:10:08]} 17. g4 {[%emt 0:02:51]} Bg6 {[%emt 0:00:18]} 18. Nf4 {[%emt 0:00:05]} c5 {[%emt 0:04:40]} 19. Nxg6 {[%emt 0:01:45]} hxg6 {[%emt 0:00:05] The position is equal.} 20. Bc3 {[%emt 0:00:56]} Bf6 {[%emt 0:02:38]} 21. Rac1 {[%emt 0:01:18]} cxd4 {[%emt 0:03:50]} 22. Bxd4 {[%emt 0:02:08]} Bxd4 {[%emt 0:00:06]} 23. Qxd4 {[%emt 0:00:46]} Nc5 {[%emt 0:01:02]} 24. e5 {[%emt 0:02:40]} Ne6 {[%emt 0:01:02]} 25. Qd2 {[%emt 0:00:51]} dxe5 {[%emt 0:06:08]} 26. Qxd8 {[%emt 0:02:38]} Rexd8 {[%emt 0:01:36]} 27. Rxe5 {[%emt 0:00:38] Weighted Error Value: White=0.05 (flawless) /Black=0.05 (flawless) .  Inaccurate:     	White=2     	Black=1      OK:         	White=10    	Black=6      Best:        	---       	Black=1} 1/2-1/2

[Event "Vojvodina Open 2024-A 2024"]
[Site "Novi Sad"]
[Date "2024.06.29"]
[Round "7.2"]
[White "Sedlak, Nikola"]
[Black "Antic, Dejan"]
[Result "1-0"]
[ECO "D32"]
[WhiteElo "2426"]
[BlackElo "2353"]
[Annotator "RC"]
[PlyCount "45"]
[EventDate "2024.06.03"]
[EventType "swiss"]
[EventCountry "SRB"]
[SourceTitle "playchess.com"]
[Source "ChessBase"]
[SourceQuality "1"]
[TimeControl "40/5400+30:900+30"]

1. Nf3 {[%emt 0:00:04]} Nf6 {[%emt 0:00:24]} 2. c4 {[%emt 0:00:16]} e6 {[%emt 0:00:34]} 3. Nc3 {[%emt 0:00:36]} d5 {[%emt 0:01:24]} 4. e3 {[%emt 0:00:10]} Be7 {[%emt 0:02:28]} 5. b3 {[%emt 0:00:36]} O-O {[%emt 0:00:35]} 6. Bb2 {[%emt 0:00:06]} c5 {[%emt 0:01:37]} 7. d4 {[%emt 0:01:21]} Nc6 {[%emt 0:02:29]} 8. cxd5 {[%emt 0:01:04]} exd5 {[%emt 0:01:05]} 9. Be2 {[%emt 0:00:21]} Bg4 {[%emt 0:06:51]} 10. dxc5 {[%emt 0:00:58]} Bxc5 {[%emt 0:00:19]} 11. O-O {[%emt 0:00:09]} a6 {[%emt 0:04:25]} 12. Rc1 {[%emt 0:01:17]} Bd6 {[%emt 0:05:29]} 13. Nd4 {[%emt 0:01:48]} Bd7 {[%emt 0:19:06]} 14. Bf3 {[%emt 0:02:25]} Ne5 {[%emt 0:01:11]} 15. Nxd5 {[%emt 0:05:50]} Nfg4 {[%emt 0:06:01]} 16. Nf4 {[%emt 0:04:23]} g5 {[%emt 0:12:08]} 17. Nfe6 {[%emt 0:05:18]} Nxf3+ {[%emt 0:03:02]} 18. Qxf3 {[%emt 0:00:29]} Nxh2 {[%emt 0:06:08]} 19. Qd5 {[%emt 0:05:08]} Nf3+ {[%emt 0:08:00]} 20. Nxf3 {[%emt 0:03:36]} Bxe6 {[%emt 0:00:14]} 21. Qd4 {[%emt 0:00:23]} f6 {[%emt 0:00:44]} 22. Rfd1 {[%emt 0:02:09]} Be5 {[%emt 0:04:25]} 23. Qe4 {[%emt 0:00:55]} 1-0

[Event "Vojvodina Open 2024-A 2024"]
[Site "Novi Sad"]
[Date "2024.06.29"]
[Round "7.3"]
[White "Kushagra Mohan"]
[Black "Harshavardhan G B"]
[Result "0-1"]
[ECO "B67"]
[WhiteElo "2367"]
[BlackElo "2433"]
[Annotator "TA"]
[PlyCount "112"]
[EventDate "2024.06.03"]
[EventType "swiss"]
[EventCountry "SRB"]
[SourceTitle "playchess.com"]
[Source "ChessBase"]
[SourceQuality "1"]
[TimeControl "40/5400+30:900+30"]

{[%evp 32,112,0,-18,29,0,0,16,0,0,11,7,13,-3,0,-8,-4,-9,4,0,39,-3,-14,-36,0,-2,0,0,0,0,0,0,0,0,0,0,0,0,0,0,0,0,0,0,0,0,0,0,0,0,0,0,0,0,0,0,0,0,-8,-409,-356,-281,-218,-427,-427,-427,-427,-283,-552,-1078,-841,-1106,-1178,-1519,-1131,-1002,-1410,-1615,-1497,-1173,-1000,-844,-691]} 1. e4 {[%emt 0:05:19]} c5 {[%emt 0:00:28]} 2. Nf3 {[%emt 0:00:04]} d6 {[%emt 0:00:24]} 3. d4 {[%emt 0:00:03]} cxd4 {[%emt 0:00:10]} 4. Nxd4 {[%emt 0:00:02]} Nf6 {[%emt 0:00:14]} 5. Nc3 {[%emt 0:00:02]} Nc6 {[%emt 0:00:12]} 6. Bg5 {[%emt 0:00:03]} e6 {[%emt 0:00:12]} 7. Qd2 {[%emt 0:00:05]} a6 {[%emt 0:00:10]} 8. O-O-O {[%emt 0:00:05]} Bd7 {[%emt 0:00:10]} 9. Kb1 {[%emt 0:00:05]} Be7 {[%emt 0:00:12] 9...Nxd4 gains popularity. B67: Sicilian: Richter-Rauzer: 7...a6 8 0-0-0 Bd7, lines without 9 f4 Be7.} 10. Nxc6 {[%emt 0:00:04]} Bxc6 {[%emt 0:00:12]} 11. f3 {[%emt 0:00:05]} Qc7 {[%emt 0:00:10]} 12. h4 {[%emt 0:00:04]} h6 {[%emt 0:00:14]} 13. Be3 {[%emt 0:00:03]} h5 {[%emt 0:00:18]} 14. Qf2 {[%emt 0:00:13]} b5 {[%emt 0:04:18]} 15. Bd3 {[%emt 0:00:06]} Nd7 {[%emt 0:04:22]} 16. Bd4 $146 {[%emt 0:13:13]} ({Predecessor:} 16. Bg5 Nc5 17. Bxe7 Qxe7 18. Rd2 O-O 19. Ne2 e5 20. Ng3 g6 21. Nf1 f5 22. exf5 Nxd3 23. Rxd3 Rxf5 {1-0 Renet,O (2530)-Bologan,V (2540) Belfort 1995 (2)}) 16... Ne5 {[%emt 0:03:00]} 17. Qg3 {[%emt 0:00:28]} Bf6 {[%emt 0:01:30]} (17... Kf8 {is more appropriate.}) 18. f4 {[%emt 0:03:25]} Ng4 {[%emt 0:00:52]} 19. Bxf6 {[%emt 0:06:41]} gxf6 {[%emt 0:00:12]} 20. f5 {[%emt 0:00:11]} O-O-O {[%emt 0:04:36]} (20... b4 $5 21. Ne2 $8 e5 $15) 21. fxe6 {[%emt 0:04:03]} fxe6 {[%emt 0:00:12]} 22. Rhf1 {[%emt 0:00:13]} Qb6 {[%emt 0:03:46]} 23. Rde1 {[%emt 0:02:58]} Rhg8 {[%emt 0:00:38]} 24. Qf4 {[%emt 0:03:46]} Qc5 {[%emt 0:01:56]} 25. g3 {[%emt 0:02:54]} Kb7 {[%emt 0:03:22]} 26. Nd1 {[%emt 0:03:33]} Rdf8 {[%emt 0:04:16]} 27. Re2 {[%emt 0:02:24]} (27. Nf2 {with more complications.} e5 28. Qf5 Ne3 29. Qh7+) 27... Rg6 {[%emt 0:07:46]} 28. Nf2 {[%emt 0:13:08]} Ne5 {[%emt 0:02:36]} 29. Rd2 {[%emt 0:00:44]} Rfg8 {[%emt 0:19:00]} 30. Be2 {[%emt 0:00:38]} R8g7 {[%emt 0:07:07]} 31. Nd3 {[%emt 0:03:27]} Nxd3 {[%emt 0:02:41]} 32. Rxd3 {[%emt 0:01:41]} e5 {[%emt 0:03:56]} 33. Qd2 {[%emt 0:01:54]} Rxg3 {[%emt 0:02:44]} 34. Rxd6 {[%emt 0:01:24]} Bxe4 {[%emt 0:07:48]} 35. Rdxf6 {[%emt 0:01:21]} Rc7 {[%emt 0:02:41]} 36. Bd3 {[%emt 0:00:51]} Bxd3 {[%emt 0:02:03]} 37. cxd3 {[%emt 0:00:01]} Rg1 {[%emt 0:05:22]} 38. a3 {[%emt 0:01:28]} Rc6 {[%emt 0:01:34]} 39. Rf7+ {[%emt 0:01:16]} Kb6 {[%emt 0:01:08]} 40. Rxg1 {[%emt 0:00:00]} Qxg1+ {[%emt 0:00:00]} 41. Ka2 {[%emt 0:03:19]} Qd4 {[%emt 0:02:02]} 42. Qf2 {[%emt 0:00:53]} Qxf2 {[%emt 0:01:24]} 43. Rxf2 {[%emt 0:00:02]} Kc5 {[%emt 0:00:16]} 44. Rf5 {[%emt 0:02:57]} Kd4 {[%emt 0:00:10]} 45. Rxh5 $2 {[%emt 0:00:05][%mdl 8192]} (45. Kb3 $11) 45... Re6 $1 $19 {[%emt 0:00:14]} 46. Rg5 {[%emt 0:03:37]} Kxd3 {[%emt 0:00:10]} 47. h5 $2 {[%emt 0:00:01]} (47. Rg3+ Ke4 48. h5) 47... e4 $19 {[%emt 0:00:32]} 48. Rg6 {[%emt 0:01:17]} Re8 {[%emt 0:00:12]} 49. Kb3 {[%emt 0:10:37]} e3 {[%emt 0:03:28]} 50. Rd6+ {[%emt 0:00:26] [#]} Ke2 $1 {[%emt 0:00:14]} (50... Ke4 51. Kc2 $11) 51. h6 {[%emt 0:02:08]} Kf3 {[%emt 0:04:58]} 52. Rf6+ {[%emt 0:08:00]} Kg4 {[%emt 0:00:54]} 53. Rg6+ {[%emt 0:01:14]} Kf4 {[%emt 0:01:18]} 54. Rf6+ {[%emt 0:02:36]} Kg5 {[%emt 0:01:40]} 55. Rf1 {[%emt 0:00:13]} e2 {[%emt 0:00:20]} ({Stronger than} 55... Kxh6 56. Kc2 $11) 56. Re1 {[%emt 0:00:03]} Kf4 {[%emt 0:13:06]} ({Weaker is} 56... Kxh6 57. Kc2 $11) 0-1

[Event "Vojvodina Open 2024-A 2024"]
[Site "Novi Sad"]
[Date "2024.06.29"]
[Round "7.4"]
[White "Durucay, Uygar"]
[Black "Drazic, Sinisa"]
[Result "1/2-1/2"]
[ECO "A41"]
[WhiteElo "2026"]
[BlackElo "2263"]
[Annotator "RC"]
[PlyCount "121"]
[EventDate "2024.06.03"]
[EventType "swiss"]
[EventCountry "SRB"]
[SourceTitle "playchess.com"]
[Source "ChessBase"]
[SourceQuality "1"]
[TimeControl "40/5400+30:900+30"]

1. d4 {[%emt 0:00:11]} d6 {[%emt 0:03:05]} 2. Nf3 {[%emt 0:00:49]} Bg4 {[%emt 0:01:56]} 3. e4 {[%emt 0:01:43]} Nf6 {[%emt 0:00:03]} 4. Bd3 {[%emt 0:00:09]} e6 {[%emt 0:04:17]} 5. Bg5 {[%emt 0:00:41]} Be7 {[%emt 0:00:02]} 6. c3 {[%emt 0:01:04]} d5 {[%emt 0:04:55]} 7. Bxf6 {[%emt 0:07:28]} Bxf6 {[%emt 0:00:47]} 8. Nbd2 {[%emt 0:01:14]} c6 {[%emt 0:03:52]} 9. Qc2 {[%emt 0:00:39]} Bxf3 {[%emt 0:02:33]} 10. Nxf3 {[%emt 0:01:24]} dxe4 {[%emt 0:00:18]} 11. Bxe4 {[%emt 0:00:02]} Nd7 {[%emt 0:00:59]} 12. O-O {[%emt 0:04:36]} Qc7 {[%emt 0:01:04]} 13. Rfe1 {[%emt 0:01:06]} g6 {[%emt 0:00:09]} 14. Rad1 {[%emt 0:04:34]} O-O {[%emt 0:00:31]} 15. g3 {[%emt 0:03:30]} Rfe8 {[%emt 0:00:12]} 16. Nd2 {[%emt 0:10:14]} Rad8 {[%emt 0:02:33]} 17. Nc4 {[%emt 0:01:32]} b5 {[%emt 0:00:48]} 18. Ne3 {[%emt 0:00:13]} Nb6 {[%emt 0:00:10]} 19. Qe2 {[%emt 0:01:08]} Bg7 {[%emt 0:00:08]} 20. Bg2 {[%emt 0:04:02]} h5 {[%emt 0:00:35]} 21. h4 {[%emt 0:00:24]} a6 {[%emt 0:01:28]} 22. Qf3 {[%emt 0:03:19]} Nd5 {[%emt 0:00:20]} 23. g4 {[%emt 0:00:57]} hxg4 {[%emt 0:00:27]} 24. Nxg4 {[%emt 0:02:20]} e5 {[%emt 0:09:24]} 25. dxe5 {[%emt 0:01:35]} Bxe5 {[%emt 0:00:08]} 26. h5 {[%emt 0:02:04]} Bg7 {[%emt 0:00:13]} 27. h6 {[%emt 0:01:51]} Bh8 {[%emt 0:00:09]} 28. Ne3 {[%emt 0:10:26]} Kh7 {[%emt 0:07:20]} 29. Nxd5 {[%emt 0:01:29]} Rxe1+ {[%emt 0:00:06]} 30. Rxe1 {[%emt 0:00:16]} cxd5 {[%emt 0:00:02]} 31. Qe3 {[%emt 0:03:39]} d4 {[%emt 0:00:25]} 32. cxd4 {[%emt 0:00:36]} Bxd4 {[%emt 0:00:05]} 33. Qg5 {[%emt 0:00:39]} Bxb2 {[%emt 0:03:51]} 34. Bd5 {[%emt 0:03:58]} f6 {[%emt 0:07:38]} 35. Qg2 {[%emt 0:01:02]} Be5 {[%emt 0:00:46]} 36. Be4 {[%emt 0:06:32]} Qf7 {[%emt 0:03:26]} 37. Bc2 {[%emt 0:00:52]} Kxh6 {[%emt 0:01:46]} 38. Re3 {[%emt 0:07:05]} Kg7 {[%emt 0:24:23]} 39. Rh3 {[%emt 0:00:24]} f5 {[%emt 0:01:05]} 40. Qh1 {[%emt 0:00:00]} Qc4 {[%emt 0:00:00]} 41. Rh7+ {[%emt 0:07:39]} Kf6 {[%emt 0:03:36]} 42. Qb7 {[%emt 0:05:43]} Kg5 {[%emt 0:02:23]} 43. Qh1 {[%emt 0:03:53]} Qg4+ {[%emt 0:10:38]} 44. Kf1 {[%emt 0:00:10]} Qc4+ {[%emt 0:01:48]} 45. Kg1 {[%emt 0:00:02]} Kf6 {[%emt 0:00:25]} 46. Qb7 {[%emt 0:00:10]} Kg5 {[%emt 0:02:37]} 47. Qh1 {[%emt 0:00:05]} Qg4+ {[%emt 0:02:12]} 48. Kf1 {[%emt 0:00:02]} Qc4+ {[%emt 0:03:59]} 49. Kg1 {[%emt 0:00:13]} Kf6 {[%emt 0:01:30]} 50. Qb7 {[%emt 0:00:20]} Qg4+ {[%emt 0:01:16]} 51. Kf1 {[%emt 0:00:21]} Qc4+ {[%emt 0:01:31]} 52. Kg1 {[%emt 0:00:05]} Kg5 {[%emt 0:00:21]} 53. Qh1 {[%emt 0:00:08]} Qg4+ {[%emt 0:02:25]} 54. Kf1 {[%emt 0:00:10]} Rd1+ {[%emt 0:01:03]} 55. Bxd1 {[%emt 0:00:09]} Qxd1+ {[%emt 0:00:02]} 56. Kg2 {[%emt 0:00:01]} Qg4+ {[%emt 0:00:02]} 57. Kf1 {[%emt 0:00:20]} Qd1+ {[%emt 0:00:36]} 58. Kg2 {[%emt 0:00:01]} Qd5+ {[%emt 0:01:18]} 59. Kg1 {[%emt 0:00:41]} Qd1+ {[%emt 0:00:05]} 60. Kg2 {[%emt 0:00:15]} Qg4+ {[%emt 0:00:12]} 61. Kf1 {[%emt 0:00:01]} 1/2-1/2

[Event "Vojvodina Open 2024-A 2024"]
[Site "Novi Sad"]
[Date "2024.06.29"]
[Round "7.5"]
[White "Narayanan, Srinath"]
[Black "Tippa, Aswath Srisai"]
[Result "1/2-1/2"]
[ECO "D52"]
[WhiteElo "2533"]
[BlackElo "1647"]
[Annotator "TA"]
[PlyCount "135"]
[EventDate "2024.06.03"]
[EventType "swiss"]
[EventCountry "SRB"]
[SourceTitle "playchess.com"]
[Source "ChessBase"]
[SourceQuality "1"]
[TimeControl "40/5400+30:900+30"]

{[%evp 17,135,25,35,25,12,7,8,17,52,60,51,44,52,61,93,100,112,101,94,72,73,98,83,54,62,48,48,24,17,15,17,5,48,8,18,14,8,6,5,6,8,8,6,0,0,0,6,0,0,0,0,0,0,0,0,0,0,0,0,0,0,0,0,0,0,-3,0,-31,-1,-6,0,0,0,0,0,0,0,0,11,0,20,0,0,0,0,3,4,0,0,0,0,0,0,0,0,0,0,0,0,0,0,0,0,0,0,0,0,0,0,0,0,0,0,0,0,0,0,0,0,0]} 1. d4 {[%emt 0:02:01]} d5 {[%emt 0:00:23]} 2. c4 {[%emt 0:00:50]} e6 {[%emt 0:00:09]} 3. Nc3 {[%emt 0:00:11]} Nf6 {[%emt 0:00:28]} 4. Nf3 {[%emt 0:00:18][%cal Bg1f3,Bf3d2,Bd2c4][%mdl 32]} c6 {[%emt 0:00:16]} 5. Bg5 {[%emt 0:01:35]} Nbd7 {[%emt 0:00:12]} 6. e3 {[%emt 0:00:10]} Qa5 {[%emt 0:00:13]} 7. Nd2 {[%emt 0:01:04]} Bb4 {[%emt 0:00:20]} 8. Qc2 {[%emt 0:00:55]} O-O {[%emt 0:00:24]} 9. Be2 {[%emt 0:00:29]} c5 {[%emt 0:00:09]} 10. Bf4 {[%emt 0:01:11]} cxd4 {[%emt 0:03:48]} 11. exd4 {[%emt 0:00:08]} dxc4 {[%emt 0:02:15]} 12. Nxc4 {[%emt 0:02:11]} Qf5 {[%emt 0:01:59]} 13. Qxf5 {[%emt 0:04:54]} exf5 {[%emt 0:00:10]} 14. O-O {[%emt 0:00:16]} Bxc3 {[%emt 0:00:14]} 15. bxc3 {[%emt 0:00:02]} Nd5 {[%emt 0:00:43]} 16. Bd2 {[%emt 0:00:31]} N7f6 {[%emt 0:01:40]} 17. f3 {[%emt 0:04:15] Against Ne4} b6 {[%emt 0:17:17]} 18. Nd6 {[%emt 0:14:11]} Rd8 {[%emt 0:02:37]} 19. Nxc8 {[%emt 0:00:18]} Raxc8 {[%emt 0:00:33]} 20. c4 {[%emt 0:06:53]} Nc7 {[%emt 0:04:43]} 21. Be3 {[%emt 0:02:32]} b5 {[%emt 0:02:12]} 22. Bf2 {[%emt 0:11:18]} bxc4 {[%emt 0:09:07]} 23. Bxc4 {[%emt 0:00:21]} Ne6 {[%emt 0:00:35]} 24. Rac1 {[%emt 0:00:49]} g5 {[%emt 0:03:43]} 25. Rfd1 {[%emt 0:09:37]} Nd5 {[%emt 0:01:21]} 26. h4 {[%emt 0:05:38]} h6 {[%emt 0:00:37]} 27. hxg5 {[%emt 0:07:06]} hxg5 {[%emt 0:00:31]} 28. Bxd5 {[%emt 0:00:02] A strong pair of Bishops.} Rxc1 {[%emt 0:00:32]} 29. Rxc1 {[%emt 0:00:01]} Rxd5 $11 {[%emt 0:00:09][%mdl 4096] Endgame. KRB-KRN} 30. Rc8+ {[%emt 0:00:49]} Kg7 {[%emt 0:00:35]} 31. Rc4 {[%emt 0:00:02]} Rb5 {[%emt 0:02:44]} 32. a4 {[%emt 0:07:25]} Rb1+ {[%emt 0:01:22]} 33. Kh2 {[%emt 0:00:01]} Rd1 {[%emt 0:02:22]} 34. d5 {[%emt 0:00:28]} Rxd5 {[%emt 0:00:43]} 35. Bxa7 {[%emt 0:00:02]} Rd2 {[%emt 0:00:53]} 36. Be3 {[%emt 0:02:11]} Ra2 {[%emt 0:00:27]} 37. Kg1 {[%emt 0:01:08]} Kg6 {[%emt 0:01:19]} 38. Kf1 {[%emt 0:00:24]} Ra1+ {[%emt 0:01:03]} 39. Kf2 {[%emt 0:05:19]} Ra2+ {[%emt 0:02:01]} 40. Kg1 {[%emt 0:00:00]} Ra1+ {[%emt 0:00:00]} 41. Kh2 {[%emt 0:00:07]} Ra2 {[%emt 0:01:09]} 42. Bc1 {[%emt 0:00:50]} Kh5 {[%emt 0:02:33]} 43. Be3 {[%emt 0:00:52] The position is equal.} Kg6 {[%emt 0:00:07]} 44. Kg1 {[%emt 0:05:01]} Kh5 {[%emt 0:08:25]} 45. g3 {[%emt 0:00:44]} Ra1+ {[%emt 0:01:18]} 46. Kf2 {[%emt 0:00:18]} Ra2+ {[%emt 0:00:31]} 47. Ke1 {[%emt 0:01:59]} Ra3 {[%emt 0:01:04]} 48. Ke2 {[%emt 0:02:29]} Ra2+ {[%emt 0:01:06]} 49. Ke1 {[%emt 0:06:13]} Ra3 {[%emt 0:00:11]} 50. Kd2 {[%emt 0:02:16]} Kg6 {[%emt 0:12:33]} 51. Bb6 {[%emt 0:02:55] Strongly threatening a5.} f4 {[%emt 0:08:51]} 52. g4 {[%emt 0:00:38]} Rxf3 {[%emt 0:04:49]} 53. Rc3 {[%emt 0:03:44]} Rxc3 {[%emt 0:02:40]} 54. Kxc3 {[%emt 0:00:01] [#] Threatens to win with a5. KB-KN} f3 {[%emt 0:00:09]} ({Don't blunder} 54... f5 $2 55. a5 f3 (55... fxg4 $2 56. a6 $18) 56. Kd2 $18 (56. gxf5+ Kxf5 57. Kd2 f2 $11)) 55. a5 {[%emt 0:01:53] Hoping for Kd3.} Nc7 {[%emt 0:00:32]} 56. Kd2 {[%emt 0:00:59]} (56. Bxc7 $2 {is the wrong capture.} f2 57. Kd4 f1=Q $19 (57... f1=B 58. Ke3 $11)) 56... Na6 {[%emt 0:00:56]} 57. Ke3 {[%emt 0:00:09]} f5 {[%emt 0:00:10]} 58. Kxf3 {[%emt 0:00:03]} Kf6 {[%emt 0:00:16]} 59. Bd8+ {[%emt 0:00:06]} Ke6 {[%emt 0:00:06]} 60. Bxg5 {[%emt 0:00:05]} fxg4+ {[%emt 0:00:06]} 61. Kxg4 {[%emt 0:00:03]} Kd6 {[%emt 0:00:36]} 62. Bd2 {[%emt 0:00:05]} Kc6 {[%emt 0:00:06]} 63. Kf5 {[%emt 0:00:02]} Kb5 {[%emt 0:00:08]} 64. Ke6 {[%emt 0:00:04]} Nc5+ {[%emt 0:00:04]} 65. Kd5 {[%emt 0:00:03]} Nb3 {[%emt 0:00:07]} 66. Bc3 {[%emt 0:00:02]} Nxa5 {[%emt 0:00:07]} 67. Bxa5 {[%emt 0:00:02]} Kxa5 {[%emt 0:00:08]} 68. Ke4 {[%emt 0:00:34] Weighted Error Value: White=0.06 (flawless) /Black=0.05 (flawless) .  Inaccurate:     	White=3     	Black=4      OK:         	White=25    	Black=32     Best:        	White=2     	Black=1} 1/2-1/2